fUST/lending_fUST_20240828
["ID","MTS","AMOUNT","RATE_DAILY","PERIOD"]
[336378480,1724796653954,-625.43114494,0.0001178,2]
[336378481,1724796653964,-500.0,0.0001178,2]
[336378482,1724796653979,-234.71928802,0.0001178,2]
[336378483,1724796653991,-500.0,0.0001178,2]
[336378484,1724796654002,-500.0,0.0001178,2]
[336378485,1724796654013,-440.66401395,0.0001178,2]
[336378486,1724796654024,-500.0,0.0001178,2]
[336378487,1724796654034,-557.4459425,0.0001178,2]
[336378488,1724796654045,-500.0,0.0001178,2]
[336378489,1724796654055,-500.0,0.0001178,2]
[336378490,1724796654066,-500.0,0.0001178,2]
[336378491,1724796654075,-500.0,0.0001178,2]
[336378492,1724796654085,-500.0,0.0001178,2]
[336378493,1724796654097,-403.9481357,0.0001178,2]
[336378494,1724796654107,-500.0,0.0001178,2]
[336378495,1724796654117,-626.38641854,0.0001178,2]
[336378496,1724796654127,-1735.46,0.0001178,2]
[336378497,1724796654136,-500.0,0.0001178,2]
[336378498,1724796654146,-385.85217683,0.0001178,2]
[336378499,1724796654155,-405.0842841,0.0001178,2]
[336378500,1724796654165,-500.0,0.0001178,2]
[336378501,1724796654175,-500.0,0.0001178,2]
[336378502,1724796654184,-550.79,0.0001178,2]
[336378503,1724796654194,-500.0,0.0001178,2]
[336378504,1724796654203,-500.0,0.0001178,2]
[336378505,1724796654214,-500.0,0.0001178,2]
[336378506,1724796654226,-501.08364089,0.0001178,2]
[336378507,1724796654240,-500.0,0.0001178,2]
[336378508,1724796654250,-500.0,0.0001178,2]
[336378509,1724796654260,-208.59094196,0.0001178,2]
[336378510,1724796654270,-500.0,0.0001178,2]
[336378511,1724796654279,-500.0,0.0001178,2]
[336378512,1724796654289,-393.87105477,0.0001178,2]
[336378513,1724796654299,-500.0,0.0001178,2]
[336378514,1724796654309,-512.95338622,0.0001178,2]
[336378515,1724796654319,-500.0,0.0001178,2]
[336378516,1724796654329,-500.0,0.0001178,2]
[336378517,1724796654338,-500.0,0.0001178,2]
[336378518,1724796654348,-500.0,0.0001178,2]
[336378519,1724796654359,-500.0,0.0001178,2]
[336378520,1724796654376,-500.0,0.0001178,2]
[336378521,1724796654392,-500.0,0.0001178,2]
[336378522,1724796654407,-500.0,0.0001178,2]
[336378523,1724796654418,-177.23,0.0001178,2]
[336378524,1724796654432,-511.04,0.0001178,2]
[336378525,1724796654447,-500.0,0.0001178,2]
[336378526,1724796654461,-500.0,0.0001178,2]
[336378527,1724796654478,-500.0,0.0001178,2]
[336378528,1724796654494,-500.0,0.0001178,2]
[336378529,1724796654510,-506.9,0.0001178,2]
[336378530,1724796654523,-500.0,0.0001178,2]
[336378531,1724796654536,-500.0,0.0001178,2]
[336378532,1724796654550,-500.0,0.0001178,2]
[336378533,1724796654565,-500.0,0.0001178,2]
[336378534,1724796654579,-500.0,0.0001178,2]
[336378535,1724796654592,-500.0,0.0001178,2]
[336378536,1724796654602,-500.0,0.0001178,2]
[336378537,1724796654615,-500.0,0.0001178,2]
[336378538,1724796654629,-954.62,0.0001178,2]
[336378539,1724796654642,-500.0,0.0001178,2]
[336378540,1724796654655,-500.0,0.0001178,2]
[336378541,1724796654670,-317.59,0.0001178,2]
[336378542,1724796654686,-500.0,0.0001178,2]
[336378543,1724796654699,-500.0,0.0001178,2]
[336378544,1724796654711,-500.0,0.0001178,2]
[336378545,1724796654725,-500.0,0.0001178,2]
[336378546,1724796654737,-500.0,0.0001178,2]
[336378547,1724796654751,-500.0,0.0001178,2]
[336378548,1724796654766,-500.0,0.0001178,2]
[336378549,1724796654779,-500.0,0.0001178,2]
[336378550,1724796654791,-1825.98,0.0001178,2]
[336378551,1724796654804,-500.0,0.0001178,2]
[336378552,1724796654819,-275.56946795,0.0001178,2]
[336378553,1724796654832,-500.0,0.0001178,2]
[336378554,1724796654844,-500.0,0.0001178,2]
[336378555,1724796654854,-500.0,0.0001178,2]
[336378556,1724796654867,-500.0,0.0001178,2]
[336378557,1724796654879,-500.0,0.0001178,2]
[336378558,1724796654890,-500.0,0.0001178,2]
[336378559,1724796654903,-500.0,0.0001178,2]
[336378560,1724796654917,-500.0,0.0001178,2]
[336378561,1724796654929,-500.0,0.0001178,2]
[336378562,1724796654941,-252.22996809,0.0001178,2]
[336378563,1724796654953,-500.0,0.0001178,2]
[336378564,1724796654967,-500.0,0.0001178,2]
[336378565,1724796654982,-500.0,0.0001178,2]
[336378566,1724796654993,-500.0,0.0001178,2]
[336378567,1724796655005,-500.0,0.0001178,2]
[336378568,1724796655022,-500.0,0.0001178,2]
[336378569,1724796655033,-500.0,0.0001178,2]
[336378570,1724796655046,-721.9,0.0001178,2]
[336378571,1724796655058,-500.0,0.0001178,2]
[336378572,1724796655069,-500.0,0.0001178,2]
[336378573,1724796655080,-500.0,0.0001178,2]
[336378574,1724796655095,-1431.67,0.0001178,2]
[336378575,1724796655108,-500.0,0.0001178,2]
[336378576,1724796655120,-500.0,0.0001178,2]
[336378577,1724796655132,-676.31,0.0001178,2]
[336378578,1724796655143,-403.68,0.0001178,2]
[336378579,1724796655155,-913.41,0.0001178,2]
[336378580,1724796655168,-557.67,0.0001178,2]
[336378581,1724796655180,-500.0,0.0001178,2]
[336378582,1724796655193,-500.0,0.0001178,2]
[336378583,1724796655206,-500.0,0.0001178,2]
[336378584,1724796655218,-500.0,0.0001178,2]
[336378585,1724796655236,-500.0,0.0001178,2]
[336378586,1724796655249,-1457.8,0.0001178,2]
[336378587,1724796655263,-409.20503905,0.0001178,2]
[336378588,1724796655276,-500.0,0.0001178,2]
[336378589,1724796655289,-500.0,0.0001178,2]
[336378590,1724796655302,-3022.17,0.0001178,2]
[336378591,1724796655314,-4892.46,0.0001178,2]
[336378592,1724796655327,-500.0,0.0001178,2]
[336378593,1724796655340,-500.0,0.0001178,2]
[336378594,1724796655351,-500.0,0.0001178,2]
[336378595,1724796655364,-500.0,0.0001178,2]
[336378596,1724796655376,-500.0,0.0001178,2]
[336378597,1724796655388,-552.2,0.0001178,2]
[336378598,1724796655402,-6200.42,0.0001178,2]
[336378599,1724796655414,-500.0,0.0001178,2]
[336378600,1724796655427,-571.48,0.0001178,2]
[336378601,1724796655439,-20432.99,0.0001178,2]
[336378602,1724796655452,-500.0,0.0001178,2]
[336378603,1724796655467,-500.0,0.0001178,2]
[336378604,1724796655486,-500.0,0.0001178,2]
[336378605,1724796655499,-1218.41,0.0001178,2]
[336378606,1724796655509,-1423.82,0.0001178,2]
[336378607,1724796655519,-500.0,0.0001178,2]
[336378608,1724796655530,-500.0,0.0001178,2]
[336378609,1724796655540,-500.0,0.0001178,2]
[336378610,1724796655549,-549.86099431,0.0001178,2]
[336378611,1724796655559,-2734.13,0.0001178,2]
[336378612,1724796655568,-500.0,0.0001178,2]
[336378613,1724796655578,-500.0,0.0001178,2]
[336378614,1724796655588,-500.0,0.0001178,2]
[336378615,1724796655599,-585.65,0.0001178,2]
[336378616,1724796655609,-500.0,0.0001178,2]
[336378617,1724796655619,-4833.4,0.0001178,2]
[336378618,1724796655629,-769.52,0.0001178,2]
[336378619,1724796655640,-500.0,0.0001178,2]
[336378620,1724796655649,-4045.72,0.0001178,2]
[336378621,1724796655659,-500.0,0.0001178,2]
[336378622,1724796655670,-7717.23,0.0001178,2]
[336378623,1724796655679,-500.0,0.0001178,2]
[336378624,1724796655689,-500.0,0.0001178,2]
[336378625,1724796655699,-500.0,0.0001178,2]
[336378626,1724796655708,-500.0,0.0001178,2]
[336378627,1724796655718,-500.0,0.0001178,2]
[336378628,1724796655730,-500.0,0.0001178,2]
[336378629,1724796655740,-182.72106015,0.0001178,2]
[336378630,1724796655750,-500.0,0.0001178,2]
[336378631,1724796655760,-535.66040708,0.0001178,2]
[336378632,1724796655769,-500.0,0.0001178,2]
[336378633,1724796655779,-500.0,0.0001178,2]
[336378634,1724796655789,-660.1,0.0001178,2]
[336378635,1724796655799,-500.0,0.0001178,2]
[336378636,1724796655809,-500.0,0.0001178,2]
[336378637,1724796655819,-500.0,0.0001178,2]
[336378638,1724796655829,-500.0,0.0001178,2]
[336378639,1724796655839,-500.0,0.0001178,2]
[336378640,1724796655849,-500.0,0.0001178,2]
[336378641,1724796655859,-1792.69,0.0001178,2]
[336378642,1724796655869,-502.02519842,0.0001178,2]
[336378643,1724796655879,-3520.99,0.0001178,2]
[336378644,1724796656132,-500.0,0.0001178,2]
[336378645,1724796656153,-296.24,0.0001178,2]
[336378646,1724796656164,-500.0,0.0001178,2]
[336378647,1724796656174,-590.74438666,0.0001178,2]
[336378648,1724796656183,-500.0,0.0001178,2]
[336378649,1724796656194,-500.0,0.0001178,2]
[336378650,1724796656204,-500.0,0.0001178,2]
[336378651,1724796656214,-610.8,0.0001178,2]
[336378652,1724796656224,-500.0,0.0001178,2]
[336378653,1724796656236,-500.0,0.0001178,2]
[336378654,1724796656246,-500.0,0.0001178,2]
[336378655,1724796656256,-500.0,0.0001178,2]
[336378656,1724796656266,-561.57,0.0001178,2]
[336378657,1724796656276,-500.0,0.0001178,2]
[336378658,1724796656287,-500.0,0.0001178,2]
[336378659,1724796656297,-240.57934333,0.0001178,2]
[336378660,1724796656307,-500.0,0.0001178,2]
[336378661,1724796656317,-500.0,0.0001178,2]
[336378662,1724796656327,-500.0,0.0001178,2]
[336378663,1724796656338,-500.0,0.0001178,2]
[336378664,1724796656348,-500.0,0.0001178,2]
[336378665,1724796656358,-500.0,0.0001178,2]
[336378666,1724796656369,-1094.02,0.0001178,2]
[336378667,1724796656379,-500.0,0.0001178,2]
[336378668,1724796656388,-500.0,0.0001178,2]
[336378669,1724796656398,-500.0,0.0001178,2]
[336378670,1724796656408,-1082.95,0.0001178,2]
[336378671,1724796656419,-500.0,0.0001178,2]
[336378672,1724796656429,-500.0,0.0001178,2]
[336378673,1724796656439,-500.0,0.0001178,2]
[336378674,1724796656449,-12746.43,0.0001178,2]
[336378675,1724796656459,-500.0,0.0001178,2]
[336378676,1724796656469,-500.0,0.0001178,2]
[336378677,1724796656483,-500.0,0.0001178,2]
[336378678,1724796656492,-500.0,0.0001178,2]
[336378679,1724796656502,-500.0,0.0001178,2]
[336378680,1724796656512,-5759.95,0.0001178,2]
[336378681,1724796656521,-1888.08,0.0001178,2]
[336378682,1724796656531,-500.0,0.0001178,2]
[336378683,1724796656541,-500.0,0.0001178,2]
[336378684,1724796656551,-4343.67,0.0001178,2]
[336378685,1724796656560,-500.0,0.0001178,2]
[336378686,1724796656570,-500.0,0.0001178,2]
[336378687,1724796656579,-500.0,0.0001178,2]
[336378688,1724796656589,-575.01,0.0001178,2]
[336378689,1724796656598,-4231.94,0.0001178,2]
[336378690,1724796656607,-467.97158407,0.0001178,2]
[336378691,1724796656616,-500.0,0.0001178,2]
[336378692,1724796656626,-7606.6,0.0001178,2]
[336378693,1724796656636,-500.0,0.0001178,2]
[336378694,1724796656645,-500.0,0.0001178,2]
[336378695,1724796656655,-500.0,0.0001178,2]
[336378696,1724796656665,-1000.0,0.00011821,2]
[336378697,1724796656674,-621637.567856,0.000119,2]
[336378698,1724796656683,-151.0,0.000119,2]
[336378699,1724796656693,-151.0,0.000119,2]
[336378700,1724796656702,-4574.284174,0.000119,2]
[336378701,1724796656712,-4574.284174,0.000119,2]
[336378702,1724796656722,-420.0,0.00011943,2]
[336378703,1724796656734,-5593.09224044,0.00011954,2]
[336378704,1724796656744,-500.0,0.00012054,2]
[336378705,1724796656753,-500.0,0.00012054,2]
[336378706,1724796656762,-500.0,0.00012054,2]
[336378707,1724796656772,-500.0,0.00012054,2]
[336378708,1724796656781,-500.0,0.00012054,2]
[336378709,1724796656791,-500.0,0.00012054,2]
[336378710,1724796656801,-500.0,0.00012054,2]
[336378711,1724796656810,-345.93000185,0.00012054,2]
[336378712,1724796656820,-500.0,0.00012054,2]
[336378713,1724796656830,-500.0,0.00012054,2]
[336378714,1724796656839,-309.35,0.00012054,2]
[336378715,1724796656849,-500.0,0.00012054,2]
[336378716,1724796656859,-500.0,0.00012054,2]
[336378717,1724796656870,-1735.46,0.00012054,2]
[336378718,1724796656879,-500.0,0.00012054,2]
[336378719,1724796656889,-540.24442495,0.00012054,2]
[336378720,1724796656899,-500.0,0.00012054,2]
[336378721,1724796656908,-500.0,0.00012054,2]
[336378722,1724796656918,-500.0,0.00012054,2]
[336378723,1724796656928,-500.0,0.00012054,2]
[336378724,1724796656938,-500.0,0.00012054,2]
[336378725,1724796656948,-500.0,0.00012054,2]
[336378726,1724796656958,-562.08,0.00012054,2]
[336378727,1724796656968,-500.0,0.00012054,2]
[336378728,1724796656981,-500.0,0.00012054,2]
[336378729,1724796656991,-500.0,0.00012054,2]
[336378730,1724796657002,-500.0,0.00012054,2]
[336378731,1724796657014,-500.0,0.00012054,2]
[336378732,1724796657025,-564.56604931,0.00012054,2]
[336378733,1724796657034,-500.0,0.00012054,2]
[336378734,1724796657045,-511.04,0.00012054,2]
[336378735,1724796657055,-500.0,0.00012054,2]
[336378736,1724796657065,-506.9,0.00012054,2]
[336378737,1724796657074,-500.0,0.00012054,2]
[336378738,1724796657085,-245.78,0.00012054,2]
[336378739,1724796657094,-954.62,0.00012054,2]
[336378740,1724796657104,-451.7853251,0.00012054,2]
[336378741,1724796657114,-500.0,0.00012054,2]
[336378742,1724796657124,-500.0,0.00012054,2]
[336378743,1724796657135,-544.36,0.00012054,2]
[336378744,1724796657146,-500.0,0.00012054,2]
[336378745,1724796657155,-500.0,0.00012054,2]
[336378746,1724796657164,-500.0,0.00012054,2]
[336378747,1724796657175,-559.2694519,0.00012054,2]
[336378748,1724796657184,-500.0,0.00012054,2]
[336378749,1724796657196,-500.0,0.00012054,2]
[336378750,1724796657207,-1825.98,0.00012054,2]
[336378751,1724796657217,-500.0,0.00012054,2]
[336378752,1724796657228,-500.0,0.00012054,2]
[336378753,1724796657237,-500.0,0.00012054,2]
[336378754,1724796657247,-185.89,0.00012054,2]
[336378755,1724796657257,-347.94978266,0.00012054,2]
[336378756,1724796657266,-500.0,0.00012054,2]
[336378757,1724796657275,-500.0,0.00012054,2]
[336378758,1724796657287,-500.0,0.00012054,2]
[336378759,1724796657296,-500.0,0.00012054,2]
[336378760,1724796657306,-500.0,0.00012054,2]
[336378761,1724796657315,-535.08,0.00012054,2]
[336378762,1724796657325,-500.0,0.00012054,2]
[336378763,1724796657335,-352.94,0.00012054,2]
[336378764,1724796657345,-172.6,0.00012054,2]
[336378765,1724796657354,-500.0,0.00012054,2]
[336378766,1724796657364,-721.9,0.00012054,2]
[336378767,1724796657373,-500.0,0.00012054,2]
[336378768,1724796657383,-1431.67,0.00012054,2]
[336378769,1724796657393,-500.0,0.00012054,2]
[336378770,1724796657402,-676.31,0.00012054,2]
[336378771,1724796657415,-913.41,0.00012054,2]
[336378772,1724796657425,-331.08,0.00012054,2]
[336378773,1724796657434,-500.0,0.00012054,2]
[336378774,1724796657444,-500.0,0.00012054,2]
[336378775,1724796657454,-500.0,0.00012054,2]
[336378776,1724796657463,-1457.8,0.00012054,2]
[336378777,1724796657473,-500.0,0.00012054,2]
[336378778,1724796657491,-218.50278203,0.00012054,2]
[336378779,1724796657502,-3022.17,0.00012054,2]
[336378780,1724796657512,-4892.46,0.00012054,2]
[336378781,1724796657522,-500.0,0.00012054,2]
[336378782,1724796657532,-500.0,0.00012054,2]
[336378783,1724796657542,-500.0,0.00012054,2]
[336378784,1724796657551,-6200.42,0.00012054,2]
[336378785,1724796657561,-192.01,0.00012054,2]
[336378786,1724796657570,-20432.99,0.00012054,2]
[336378787,1724796657579,-500.0,0.00012054,2]
[336378788,1724796657589,-500.0,0.00012054,2]
[336378789,1724796657598,-1218.41,0.00012054,2]
[336378790,1724796657607,-1423.82,0.00012054,2]
[336378791,1724796657617,-2734.13,0.00012054,2]
[336378792,1724796657627,-500.0,0.00012054,2]
[336378793,1724796657636,-500.0,0.00012054,2]
[336378794,1724796657646,-500.0,0.00012054,2]
[336378795,1724796657657,-4833.4,0.00012054,2]
[336378796,1724796657667,-769.52,0.00012054,2]
[336378797,1724796657676,-500.0,0.00012054,2]
[336378798,1724796657686,-4045.72,0.00012054,2]
[336378799,1724796657696,-500.0,0.00012054,2]
[336378800,1724796657705,-7717.23,0.00012054,2]
[336378801,1724796657716,-500.0,0.00012054,2]
[336378802,1724796657728,-500.0,0.00012054,2]
[336378803,1724796657744,-500.0,0.00012054,2]
[336378804,1724796657753,-500.0,0.00012054,2]
[336378805,1724796657764,-500.0,0.00012054,2]
[336378806,1724796657773,-500.0,0.00012054,2]
[336378807,1724796657783,-247.28,0.00012054,2]
[336378808,1724796657792,-660.1,0.00012054,2]
[336378809,1724796657801,-500.0,0.00012054,2]
[336378810,1724796657811,-500.0,0.00012054,2]
[336378811,1724796657821,-500.0,0.00012054,2]
[336378812,1724796657831,-1792.69,0.00012054,2]
[336378813,1724796657840,-3520.99,0.00012054,2]
[336378814,1724796657853,-315.83,0.00012054,2]
[336378815,1724796657863,-500.0,0.00012054,2]
[336378816,1724796657873,-500.0,0.00012054,2]
[336378817,1724796657883,-500.0,0.00012054,2]
[336378818,1724796657894,-500.0,0.00012054,2]
[336378819,1724796657905,-500.0,0.00012054,2]
[336378820,1724796657914,-255.8,0.00012054,2]
[336378821,1724796657925,-500.0,0.00012054,2]
[336378822,1724796657935,-197.38,0.00012054,2]
[336378823,1724796657947,-500.0,0.00012054,2]
[336378824,1724796657956,-500.0,0.00012054,2]
[336378825,1724796657966,-500.0,0.00012054,2]
[336378826,1724796657976,-1094.02,0.00012054,2]
[336378827,1724796657999,-500.0,0.00012054,2]
[336378828,1724796658011,-500.0,0.00012054,2]
[336378829,1724796658021,-500.0,0.00012054,2]
[336378830,1724796658030,-1082.95,0.00012054,2]
[336378831,1724796658040,-500.0,0.00012054,2]
[336378832,1724796658050,-196.36538301,0.00012054,2]
[336378833,1724796658060,-500.0,0.00012054,2]
[336378834,1724796658071,-12746.43,0.00012054,2]
[336378835,1724796658080,-500.0,0.00012054,2]
[336378836,1724796658091,-500.0,0.00012054,2]
[336378837,1724796658101,-500.0,0.00012054,2]
[336378838,1724796658111,-500.0,0.00012054,2]
[336378839,1724796658120,-5759.95,0.00012054,2]
[336378840,1724796658130,-1888.08,0.00012054,2]
[336378841,1724796658139,-500.0,0.00012054,2]
[336378842,1724796658149,-500.0,0.00012054,2]
[336378843,1724796658159,-4343.67,0.00012054,2]
[336378844,1724796658169,-500.0,0.00012054,2]
[336378845,1724796658179,-500.0,0.00012054,2]
[336378846,1724796658189,-500.0,0.00012054,2]
[336378847,1724796658199,-575.01,0.00012054,2]
[336378848,1724796658208,-4231.94,0.00012054,2]
[336378849,1724796658218,-500.0,0.00012054,2]
[336378850,1724796658235,-7606.6,0.00012054,2]
[336378851,1724796658244,-500.0,0.00012054,2]
[336378852,1724796658253,-275.99,0.00012054,2]
[336378853,1724796658263,-500.0,0.00012054,2]
[336378854,1724796658272,-150.0,0.000123,2]
[336378855,1724796658282,-441.32,0.00012328,2]
[336378856,1724796658291,-500.0,0.00012328,2]
[336378857,1724796658301,-500.0,0.00012328,2]
[336378858,1724796658311,-500.0,0.00012328,2]
[336378859,1724796658321,-500.0,0.00012328,2]
[336378860,1724796658330,-500.0,0.00012328,2]
[336378861,1724796658339,-500.0,0.00012328,2]
[336378862,1724796658349,-500.0,0.00012328,2]
[336378863,1724796658359,-500.0,0.00012328,2]
[336378864,1724796658368,-500.0,0.00012328,2]
[336378865,1724796658378,-500.0,0.00012328,2]
[336378866,1724796658388,-1735.46,0.00012328,2]
[336378867,1724796658397,-476.67,0.00012328,2]
[336378868,1724796658407,-500.0,0.00012328,2]
[336378869,1724796658416,-500.0,0.00012328,2]
[336378870,1724796658427,-500.0,0.00012328,2]
[336378871,1724796658436,-500.0,0.00012328,2]
[336378872,1724796658446,-500.0,0.00012328,2]
[336378873,1724796658455,-500.0,0.00012328,2]
[336378874,1724796658465,-621.63,0.00012328,2]
[336378875,1724796658475,-500.0,0.00012328,2]
[336378876,1724796658492,-500.0,0.00012328,2]
[336378877,1724796658503,-500.0,0.00012328,2]
[336378878,1724796658513,-500.0,0.00012328,2]
[336378879,1724796658524,-511.04,0.00012328,2]
[336378880,1724796658534,-500.0,0.00012328,2]
[336378881,1724796658545,-506.9,0.00012328,2]
[336378882,1724796658554,-954.62,0.00012328,2]
[336378883,1724796658564,-500.0,0.00012328,2]
[336378884,1724796658574,-500.0,0.00012328,2]
[336378885,1724796658585,-614.99708397,0.00012328,2]
[336378886,1724796658594,-500.0,0.00012328,2]
[336378887,1724796658604,-500.0,0.00012328,2]
[336378888,1724796658614,-1825.98,0.00012328,2]
[336378889,1724796658624,-500.0,0.00012328,2]
[336378890,1724796658633,-500.0,0.00012328,2]
[336378891,1724796658643,-500.0,0.00012328,2]
[336378892,1724796658653,-500.0,0.00012328,2]
[336378893,1724796658663,-500.0,0.00012328,2]
[336378894,1724796658672,-628.61,0.00012328,2]
[336378895,1724796658682,-500.0,0.00012328,2]
[336378896,1724796658692,-500.0,0.00012328,2]
[336378897,1724796658701,-721.9,0.00012328,2]
[336378898,1724796658711,-240.05,0.00012328,2]
[336378899,1724796658721,-1431.67,0.00012328,2]
[336378900,1724796658737,-500.0,0.00012328,2]
[336378901,1724796658746,-594.82389182,0.00012328,2]
[336378902,1724796658766,-81.48610818,0.00012328,2]
[336378903,1724796658776,-913.41,0.00012328,2]
[336378904,1724796658786,-500.0,0.00012328,2]
[336378905,1724796658796,-1457.8,0.00012328,2]
[336378906,1724796658806,-37.64752346,0.00012328,2]
[336378907,1724796658894,-500.0,0.00010958,2]
[336378908,1724796658903,-2984.52247654,0.00012328,2]
[336378909,1724796658913,-4892.46,0.00012328,2]
[336378910,1724796658922,-500.0,0.00012328,2]
[336378911,1724796658932,-546.31,0.00012328,2]
[336378912,1724796658942,-500.0,0.00012328,2]
[336378913,1724796658951,-6200.42,0.00012328,2]
[336378914,1724796658961,-20432.99,0.00012328,2]
[336378915,1724796658970,-500.0,0.00012328,2]
[336378916,1724796658983,-1218.41,0.00012328,2]
[336378917,1724796658992,-1423.82,0.00012328,2]
[336378918,1724796659002,-2734.13,0.00012328,2]
[336378919,1724796659011,-192.24,0.00012328,2]
[336378920,1724796659025,-500.0,0.00012328,2]
[336378921,1724796659035,-500.0,0.00012328,2]
[336378922,1724796659045,-4833.4,0.00012328,2]
[336378923,1724796659055,-769.52,0.00012328,2]
[336378924,1724796659065,-4045.72,0.00012328,2]
[336378925,1724796659074,-594.11900171,0.00012328,2]
[336378926,1724796659084,-7717.23,0.00012328,2]
[336378927,1724796659094,-500.0,0.00012328,2]
[336378928,1724796659104,-500.0,0.00012328,2]
[336378929,1724796659113,-500.0,0.00012328,2]
[336378930,1724796659123,-466.07702903,0.00012328,2]
[336378931,1724796659132,-500.0,0.00012328,2]
[336378932,1724796659142,-660.1,0.00012328,2]
[336378933,1724796659151,-500.0,0.00012328,2]
[336378934,1724796659161,-536.91,0.00012328,2]
[336378935,1724796659171,-1792.69,0.00012328,2]
[336378936,1724796659182,-3520.99,0.00012328,2]
[336378937,1724796659192,-500.0,0.00012328,2]
[336378938,1724796659201,-500.0,0.00012328,2]
[336378939,1724796659211,-500.0,0.00012328,2]
[336378940,1724796659221,-500.0,0.00012328,2]
[336378941,1724796659237,-625.54,0.00012328,2]
[336378942,1724796659247,-172.65,0.00012328,2]
[336378943,1724796659256,-1094.02,0.00012328,2]
[336378944,1724796659266,-500.0,0.00012328,2]
[336378945,1724796659275,-500.0,0.00012328,2]
[336378946,1724796659417,-500.0,0.00012328,2]
[336378947,1724796659428,-1082.95,0.00012328,2]
[336378948,1724796659438,-500.0,0.00012328,2]
[336378949,1724796659447,-12746.43,0.00012328,2]
[336378950,1724796659458,-500.0,0.00012328,2]
[336378951,1724796659469,-599.95,0.00012328,2]
[336378952,1724796659481,-5759.95,0.00012328,2]
[336378953,1724796659492,-500.0,0.00012328,2]
[336378954,1724796659502,-1888.08,0.00012328,2]
[336378955,1724796659511,-500.0,0.00012328,2]
[336378956,1724796659521,-4343.67,0.00012328,2]
[336378957,1724796659531,-500.0,0.00012328,2]
[336378958,1724796659540,-500.0,0.00012328,2]
[336378959,1724796659550,-500.0,0.00012328,2]
[336378960,1724796659560,-575.01,0.00012328,2]
[336378961,1724796659569,-4231.94,0.00012328,2]
[336378962,1724796659579,-500.0,0.00012328,2]
[336378963,1724796659589,-7606.6,0.00012328,2]
[336378964,1724796659599,-500.0,0.00012328,2]
[336378965,1724796659608,-161.57346621,0.00012328,2]
[336378966,1724796659618,-153.0,0.00012329,2]
[336378967,1724796659628,-153.0,0.00012329,2]
[336378968,1724796659640,-153.0,0.00012329,2]
[336378969,1724796659649,-153.0,0.00012329,2]
[336378970,1724796659659,-500.0,0.00012602,2]
[336378971,1724796659668,-591.65623637,0.00012602,2]
[336378972,1724796659678,-602.9,0.00012602,2]
[336378973,1724796659688,-500.0,0.00012602,2]
[336378974,1724796659698,-500.0,0.00012602,2]
[336378975,1724796659709,-500.0,0.00012602,2]
[336378976,1724796659719,-161.57,0.00012602,2]
[336378977,1724796659731,-500.0,0.00012602,2]
[336378978,1724796659743,-1735.46,0.00012602,2]
[336378979,1724796659752,-500.0,0.00012602,2]